bitfinex-derivatives/quotes_ETHF0:USTF0_20250804
["timestamp","ask_amount","ask_price","bid_price","bid_amount"]
[1754267835916,1.8327,3516.3,3516.2,2.2671]
[1754267836909,1.3681,3516.3,3516.2,2.2671]
[1754267837106,0.317,3516.3,3516.2,2.2671]
[1754267837306,3.5248,3516.5,3516.4,0.8966]
[1754267837616,3.978,3516.5,3516.4,2.2671]
[1754267837816,4.2759,3516.5,3516.4,2.2671]
[1754267838111,0.5687,3516.5,3516.3,0.9144]
[1754267838415,0.9149,3516.5,3516.4,1.5023]
[1754267838918,2.2767,3516.5,3516.4,1.5023]
[1754267839418,2.2767,3516.5,3516.4,1.811]
[1754267839917,1.3681,3516.5,3516.4,2.2671]
[1754267841423,3.2078,3516.9,3516.4,2.2671]
[1754267841722,1.5327,3517.1,3517.0,2.2671]
[1754267841915,1.8327,3517.1,3517.0,2.2671]
[1754267842515,0.56859,3517.2,3517.1,2.2671]
[1754267842516,1.0803,3517.2,3517.1,2.2671]
[1754267842818,1.8335,3517.2,3517.1,2.2671]
[1754267843118,1.8335,3517.2,3517.1,2.83569]
[1754267843416,1.5335,3517.2,3517.1,2.2671]
[1754267843621,0.56857,3517.3,3517.1,0.8966]
[1754267843920,1.63667,3517.3,3517.2,2.2671]
[1754267844111,2.10207,3517.3,3517.2,2.2671]
[1754267845418,1.63667,3517.3,3517.2,2.2671]
[1754267845811,0.7702,3517.3,3517.2,2.2671]
[1754267846016,1.3681,3517.3,3517.2,2.2671]
[1754267846219,1.8335,3517.3,3517.2,2.2671]
[1754267847517,1.8335,3517.3,3517.2,1.811]
[1754267847723,1.8335,3517.0,3516.9,2.2671]
[1754267848224,1.0681,3517.0,3516.9,2.2671]
[1754267848521,0.317,3517.0,3516.9,2.2671]
[1754267850712,0.7702,3517.0,3516.9,2.2671]
[1754267851320,2.2775,3517.0,3516.9,1.811]
[1754267851511,2.2775,3517.0,3516.9,1.5023]
[1754267851713,0.56862,3516.9,3516.7,3.2078]
[1754267851923,1.8121,3516.8,3516.7,3.9612]
[1754267852122,0.7702,3516.8,3516.7,5.0188]
[1754267852319,4.5667,3517.3,3517.2,0.5879]
[1754267852619,4.5667,3517.3,3517.2,1.5023]
[1754267852823,4.69126,3517.3,3517.2,1.811]
[1754267853022,6.05386,3517.3,3517.2,1.811]
[1754267853225,5.60986,3517.3,3517.2,1.5023]
[1754267853624,6.05386,3517.3,3517.2,1.0491]
[1754267853925,2.84611,3517.0,3516.9,1.5023]
[1754267854127,2.2775,3517.0,3516.9,1.5023]
[1754267854327,2.2775,3517.0,3516.9,1.811]
[1754267854622,2.2775,3517.0,3516.9,2.2671]
[1754267854623,1.8335,3517.0,3516.9,2.2671]
[1754267855324,2.2775,3517.0,3516.9,1.811]
[1754267856423,1.8335,3517.0,3516.9,2.2671]
[1754267856721,1.8335,3517.0,3516.8,0.56863]
[1754267856919,1.3681,3516.7,3516.6,0.5879]
[1754267857124,2.2775,3516.7,3516.6,2.83575]
[1754267857319,0.56861,3517.0,3516.7,0.56864]
[1754267857624,2.2775,3516.8,3516.7,2.83574]
[1754267857814,2.2775,3516.8,3516.7,1.0491]
[1754267858016,1.42146,3517.2,3516.3,3.2078]
[1754267858017,1.8335,3516.4,3516.3,5.27882]
[1754267858213,2.2775,3516.4,3516.3,4.82562]
[1754267859423,2.2775,3516.4,3516.3,5.58752]
[1754267859623,2.2775,3516.4,3516.3,5.0188]
[1754267860922,1.3681,3516.0,3515.9,5.59048]
[1754267861120,1.8335,3516.0,3515.9,5.59048]
[1754267861525,1.8335,3516.0,3515.9,6.04368]
[1754267863724,1.8335,3516.0,3515.9,5.4749]
[1754267864029,2.2759,3516.0,3515.9,1.058]
[1754267864417,2.2759,3516.0,3515.9,1.5177]
[1754267865123,2.2759,3516.0,3515.9,1.8296]
[1754267866528,3.2078,3516.5,3516.3,1.3888]
[1754267866529,1.3883,3516.4,3516.3,1.3888]
[1754267866728,1.3883,3516.4,3516.3,2.3036]
[1754267866929,1.8307,3516.4,3516.3,2.3036]
[1754267867127,2.2593,3516.4,3516.3,1.8485]
[1754267867431,0.7348,3516.4,3516.3,2.3036]
[1754267867730,0.3062,3516.4,3516.3,2.3036]
[1754267867925,4.2445,3516.5,3516.4,2.3036]
[1754267868128,5.0247,3516.5,3516.4,2.3036]
[1754267868321,5.0247,3516.5,3516.4,1.0769]
[1754267868519,2.2593,3516.4,3516.3,1.35131]
[1754267868729,1.8169,3516.4,3516.3,2.41941]
[1754267868930,1.0367,3516.4,3516.3,2.41941]
[1754267869232,0.7348,3516.4,3516.3,2.87231]
[1754267869435,4.70311,3517.0,3516.9,0.624]
[1754267869731,6.13765997,3517.0,3516.9,2.3036]
[1754267869919,5.56904997,3517.0,3516.9,2.3036]
[1754267870123,5.4671,3517.0,3516.9,1.8485]
[1754267870323,5.4671,3517.0,3516.9,1.0769]
[1754267870525,5.4671,3517.0,3516.9,2.3036]
[1754267871127,5.0247,3517.0,3516.9,2.3036]
[1754267872835,5.4671,3517.0,3516.9,1.0769]
[1754267873529,5.4671,3517.0,3516.9,1.5366]
[1754267873937,5.4671,3517.0,3516.9,1.0769]
[1754267874234,5.4671,3517.0,3516.9,1.64552]
[1754267874535,5.4671,3517.0,3516.9,2.10522]
[1754267874735,5.4671,3517.0,3516.9,1.8485]
[1754267875432,5.0247,3517.0,3516.9,2.3036]
[1754267876532,1.8169,3517.0,3516.9,2.3036]
[1754267876836,0.4286,3517.2,3517.1,2.3036]
[1754267877033,1.0367,3517.2,3517.1,2.3036]
[1754267877735,1.4983,3517.2,3517.1,2.3036]
[1754267878034,1.8169,3517.2,3517.1,2.3036]
[1754267878731,2.2593,3517.2,3516.8,0.56863]
[1754267878929,2.2593,3516.9,3516.8,0.754]
[1754267879135,2.82792,3516.9,3516.8,0.754]
[1754267879329,2.82792,3516.9,3516.8,1.5366]
[1754267880425,2.2593,3516.9,3516.8,1.5366]
[1754267881638,2.2593,3516.9,3516.8,2.3036]
[1754267882136,2.2593,3516.9,3516.8,1.8485]
[1754267882741,1.8169,3516.9,3516.8,2.3036]
[1754267883131,2.38548,3517.2,3517.1,2.3036]
[1754267883334,1.8169,3516.7,3516.6,2.87226]
[1754267884338,0.56867,3516.6,3516.5,3.2078]
[1754267884636,1.8169,3516.6,3516.5,4.5988]
[1754267885038,1.8169,3516.6,3516.5,5.5114]
[1754267886238,1.8169,3516.6,3516.5,2.3036]
[1754267887435,1.0367,3516.6,3516.5,2.3036]
[1754267887738,0.7348,3516.6,3516.5,2.3036]
[1754267887938,0.4286,3516.8,3516.7,1.5428]
[1754267888139,3.8283,3517.0,3516.9,1.50452]
[1754267888337,3.2078,3517.0,3516.9,2.87222]
[1754267888835,1.3553,3517.0,3516.9,2.87222]
[1754267889133,0.7348,3517.0,3516.9,2.87222]
[1754267889339,0.7348,3517.2,3517.1,1.8439]
[1754267889534,0.21292033,3517.2,3517.1,2.3036]
[1754267889939,0.94772033,3517.2,3517.1,2.3036]
[1754267890139,1.8169,3517.2,3517.1,2.3036]
[1754267890441,0.7348,3517.2,3517.1,2.3036]
[1754267891944,1.0367,3517.2,3517.1,2.3036]
[1754267892142,1.8169,3517.2,3517.1,2.3036]
[1754267893240,1.8169,3517.2,3517.1,2.87219]
[1754267893442,2.2593,3517.2,3517.1,2.3036]
[1754267894843,2.2593,3517.2,3517.1,1.8485]
[1754267895342,2.2593,3517.2,3517.1,2.3076]
[1754267895748,1.8169,3517.2,3517.1,2.3076]
[1754267898742,2.2569,3517.2,3517.1,2.3076]
[1754267899336,1.8169,3517.2,3517.1,2.3076]
[1754267900844,3.2078,3517.4,3517.3,0.9161]
[1754267901039,3.5028,3517.8,3517.7,2.2978]
[1754267901344,1.7952,3517.5,3517.4,1.8387]
[1754267901548,2.2352,3517.5,3517.4,1.8387]
[1754267901844,1.7952,3517.5,3517.4,2.2978]
[1754267903944,0.7462,3517.5,3517.4,2.2978]
[1754267904145,3.2078,3517.8,3517.4,1.3817]
[1754267904340,4.5518,3517.8,3517.5,0.9126]
[1754267904542,4.5518,3517.8,3517.6,0.4535]
[1754267904745,2.2352,3517.7,3517.6,1.0775]
[1754267904939,2.2352,3517.7,3517.6,1.3852]
[1754267905147,2.2352,3517.7,3517.6,1.8443]
[1754267905447,2.2352,3517.7,3517.6,2.2978]
[1754267906050,1.7952,3517.7,3517.6,2.2978]
[1754267906444,2.2352,3517.7,3517.6,2.2978]
[1754267908342,2.2352,3517.1,3517.0,1.8387]
[1754267909348,2.2352,3517.1,3517.0,2.2978]
[1754267909547,1.7952,3517.1,3517.0,2.2978]
[1754267909751,0.7462,3517.1,3517.0,5.5056]
[1754267909948,3.77631,3517.7,3517.0,5.5056]
[1754267909949,5.003,3517.7,3517.6,1.0619]
[1754267910151,1.42094,3518.5,3517.6,1.0619]
[1754267910152,3.6478,3518.3,3517.6,0.4591]
[1754267910357,0.303,3518.1,3518.0,1.17683]
[1754267910551,0.94730026,3518.1,3518.0,2.2978]
[1754267910755,1.98830026,3518.1,3518.0,2.2978]
[1754267910953,2.42830026,3518.1,3518.0,1.8387]
[1754267911253,1.98827063,3518.1,3518.0,2.86625]
[1754267911453,1.7952,3518.1,3518.0,2.86625]
[1754267911749,0.7462,3518.1,3518.0,2.86625]
[1754267911952,0.598,3518.2,3518.1,0.9161]
[1754267912148,1.4892,3518.2,3518.1,0.9161]
[1754267912354,2.24649572,3518.2,3518.1,0.9161]
[1754267912551,2.24649572,3518.2,3518.1,1.3752]
[1754267912852,2.24649572,3518.2,3518.1,2.2978]
[1754267913650,0.75729572,3518.2,3518.1,2.2978]
[1754267913849,4.563,3518.7,3518.6,0.9161]
[1754267914155,5.003,3518.7,3518.6,2.2978]
[1754267914354,3.2078,3518.7,3518.6,2.2978]
[1754267914654,20.5162,3519.2,3519.1,0.6052]
[1754267914959,20.70902253,3519.2,3519.1,2.86607]
[1754267915353,21.75802253,3519.2,3519.1,2.2978]
[1754267915656,2.42802253,3519.2,3519.1,2.2978]
[1754267915856,1.7952,3519.2,3519.1,2.2978]
[1754267916651,0.7462,3519.2,3519.1,2.2978]
[1754267916955,3.2078,3519.3,3519.2,0.56825]
[1754267917153,3.2078,3519.3,3519.2,2.86605]
[1754267917761,19.766,3519.6,3519.5,2.86601]
[1754267917952,19.766,3519.6,3519.5,2.2978]
[1754267918257,22.0012,3519.6,3519.5,1.8387]
[1754267918853,22.0012,3519.6,3519.5,2.2978]
[1754267919259,22.0012,3519.6,3519.5,1.8387]
[1754267919959,22.0012,3519.6,3519.5,2.40691]
[1754267920157,22.56939,3519.6,3519.5,1.8387]
[1754267920358,22.56939,3519.6,3519.0,3.6613]
[1754267920359,2.2352,3519.1,3519.0,3.6613]
[1754267920553,2.2352,3519.1,3519.0,0.4535]
[1754267920759,2.3112822,3519.3,3518.5,0.751]
[1754267920760,1.6372,3518.9,3518.5,0.751]
[1754267920959,1.7952,3518.6,3518.5,1.531]
[1754267921161,1.7952,3518.6,3518.5,1.8387]
[1754267921353,19.761,3519.1,3518.5,1.8387]
[1754267921354,19.761,3519.1,3518.7,0.56832]
[1754267921554,1.7952,3518.9,3518.8,2.2978]
[1754267921761,2.8035,3518.9,3518.4,3.6769]
[1754267921963,0.904,3518.6,3518.5,1.17676]
[1754267922160,2.2352,3518.6,3518.5,1.0619]
[1754267922465,0.904,3518.5,3518.4,0.4535]
[1754267922660,2.2352,3518.5,3518.4,1.0619]
[1754267923259,2.2352,3518.5,3518.4,1.531]
[1754267923459,2.2352,3518.5,3518.4,1.8387]
[1754267923964,1.8003,3518.5,3518.4,2.2812]
[1754267925068,2.2146,3518.5,3518.4,1.7956]
[1754267925570,1.8003,3518.5,3518.4,2.2381]
[1754267925763,1.0311,3518.5,3518.4,2.2381]
[1754267926071,0.7281,3518.5,3518.4,2.2381]
[1754267926275,1.16165,3518.7,3518.6,0.8917]
[1754267926466,1.59815,3518.7,3518.6,1.7921]
[1754267926665,1.0298,3518.7,3518.6,2.2414]
[1754267927174,1.799,3518.7,3518.6,2.2414]
[1754267927766,1.3625,3518.7,3518.6,2.2414]
[1754267927967,1.799,3518.7,3518.6,2.2414]
[1754267929274,2.2133,3518.7,3518.6,1.7989]
[1754267929774,2.2133,3518.7,3518.6,2.2414]
[1754267929976,1.799,3518.7,3518.6,2.2414]
[1754267930780,1.799,3518.7,3518.6,2.80975]
[1754267930975,0.7281,3518.7,3518.6,2.80975]
[1754267931176,1.0298,3518.9,3518.8,0.8917]
[1754267931381,1.352,3518.9,3518.8,2.2414]
[1754267932479,1.799,3518.9,3518.8,2.2414]
[1754267932779,2.2133,3518.9,3518.8,1.7989]
[1754267932976,2.2133,3518.9,3518.8,1.5231]
[1754267934179,1.799,3518.9,3518.8,2.80972]
[1754267934682,3.7761,3519.0,3518.8,0.8917]
[1754267934879,2.2133,3518.9,3518.8,0.6159]
[1754267935383,2.2133,3518.9,3518.8,1.0652]
[1754267935682,2.2133,3518.9,3518.8,1.5231]
[1754267936784,2.2133,3518.9,3518.8,1.7989]
[1754267940179,0.56839,3518.4,3518.3,0.6159]
[1754267940387,2.36739,3518.4,3518.3,1.0652]
[1754267940683,3.2078,3518.6,3518.1,0.4493]
[1754267940684,2.2133,3518.2,3518.1,0.4493]
[1754267940882,2.2133,3518.2,3518.1,0.7443]
[1754267941682,5.4211,3518.2,3518.1,0.7443]
[1754267942074,0.56843,3518.1,3517.9,0.4579]
[1754267942279,2.78178,3517.8,3517.7,1.5231]
[1754267942674,1.799,3517.8,3517.7,2.2414]
[1754267942880,3.9359,3518.2,3518.1,1.7835]
[1754267943077,0.7281,3518.2,3518.1,2.2414]
[1754267943276,0.447,3518.0,3517.4,3.6571]
[1754267943483,1.799,3517.6,3517.5,2.2414]
[1754267943677,2.36751,3517.6,3517.5,2.2414]
[1754267943885,2.36751,3517.6,3517.5,1.7989]
[1754267944088,2.78181,3517.6,3517.5,1.0652]
[1754267944791,2.78181,3517.6,3517.5,1.5231]
[1754267945392,2.78181,3517.6,3517.5,1.7989]
[1754267945586,0.56846,3518.0,3517.6,0.8918]
[1754267945786,2.04524,3518.1,3518.0,2.2414]
[1754267946089,1.48399,3517.8,3517.7,0.6159]
[1754267946392,2.36749,3517.8,3517.7,1.7989]
[1754267946800,2.06587,3517.3,3517.2,1.4971]
[1754267946994,1.799,3517.3,3517.2,2.2414]
[1754267947195,2.2133,3517.3,3517.2,0.4493]
[1754267948098,1.48411,3517.0,3516.9,1.7989]
[1754267948389,2.36761,3517.0,3516.6,0.56867]
[1754267948589,1.352,3516.9,3516.8,0.6159]
[1754267948798,1.799,3516.9,3516.8,1.7921]
[1754267949191,1.799,3516.9,3516.8,2.2414]
[1754267949899,1.799,3516.9,3516.8,2.81004]
[1754267950098,3.2078,3517.4,3516.8,2.81004]
[1754267950099,0.447,3517.2,3516.8,2.81004]
[1754267950294,0.447,3517.2,3516.9,0.4493]
[1754267950604,0.447,3517.2,3517.1,2.2414]
[1754267950605,1.3625,3517.2,3517.1,2.2414]
[1754267950998,1.799,3517.2,3517.1,2.2414]
[1754267951188,3.2078,3517.4,3517.1,2.80999]
[1754267951394,4.2376,3517.4,3517.3,2.2414]
[1754267951596,5.0068,3517.4,3517.3,2.2414]
[1754267952495,3.2078,3517.4,3517.3,2.80996]
[1754267953095,3.4994,3517.4,3517.3,2.80996]
[1754267953295,3.9359,3517.4,3517.3,2.2414]
[1754267953496,2.36755,3517.4,3517.3,2.2414]
[1754267953798,1.799,3517.4,3517.3,2.2414]
[1754267955402,1.352,3517.4,3517.3,2.2414]
[1754267955598,0.7281,3517.4,3517.3,2.2414]
[1754267956203,0.7281,3517.4,3517.3,5.4492]
[1754267956404,0.2916,3517.4,3517.3,5.4492]
[1754267956801,0.4367,3517.7,3517.6,0.273]
[1754267956999,3.2078,3517.8,3517.6,2.30731]
[1754267957196,4.9565,3517.8,3517.7,2.1587]
[1754267957505,1.7487,3517.8,3517.7,2.1587]
[1754267958908,1.7487,3518.1,3518.0,2.72715]
[1754267959301,0.2934,3518.1,3518.0,2.72715]
[1754267959602,1.4555,3518.1,3518.0,2.72715]
[1754267959802,1.7487,3518.1,3518.0,2.72715]
[1754267963008,1.7487,3518.1,3518.0,2.1587]
[1754267963207,0.5734,3518.1,3518.0,0.8786]
[1754267964009,0.5734,3518.1,3518.0,2.1587]
[1754267964810,0.56845,3518.0,3517.4,0.8317]
[1754267965007,0.5734,3517.8,3517.7,2.1587]
[1754267965208,1.0101,3517.8,3517.7,2.1587]
[1754267965615,0.5734,3517.8,3517.7,2.1587]
[1754267966715,0.4367,3518.0,3517.9,2.1587]
[1754267966716,1.0101,3518.0,3517.9,2.1587]
[1754267968517,0.5734,3518.0,3517.9,2.1587]
[1754267968713,0.56842,3518.2,3517.9,1.44705]
[1754267968913,1.0101,3518.1,3518.0,2.1587]
[1754267970010,1.0101,3518.1,3516.8,1.4216]
[1754267970011,1.0101,3517.5,3517.4,2.1587]
[1754267970216,1.0101,3518.1,3518.0,0.8786]
[1754267970412,1.0101,3518.1,3518.0,2.1587]
[1754267970614,1.2283,3518.1,3518.0,2.1587]
[1754267971214,1.79673,3518.1,3518.0,0.4199]
[1754267971518,1.57862,3517.6,3517.5,0.7365]
[1754267971712,1.79682,3517.6,3517.5,0.7365]
[1754267973219,1.14196,3517.3,3517.2,2.1587]
[1754267973417,1.79686,3517.3,3517.2,0.4199]
[1754267974127,0.5734,3517.0,3516.9,1.054]
[1754267974317,1.0101,3517.0,3516.9,1.7388]
[1754267974816,1.0101,3517.0,3516.9,1.2985]
[1754267975015,1.2283,3517.0,3516.9,1.2985]
[1754267975216,1.0101,3517.0,3516.9,1.7103]
[1754267975518,0.5734,3517.2,3517.1,1.7103]
[1754267975820,0.5734,3517.2,3517.1,2.1587]
[1754267976118,1.0101,3517.2,3517.1,2.1587]
[1754267976426,1.2283,3517.2,3517.1,0.4199]
[1754267976921,4.4361,3517.2,3517.1,0.4199]
[1754267977420,1.0101,3516.7,3516.6,0.8786]
[1754267977616,1.0101,3516.7,3516.6,2.1587]
[1754267978821,1.0101,3516.7,3516.1,3.2078]
[1754267978822,1.57881,3516.4,3516.3,1.4739]
[1754267979029,1.79701,3516.4,3516.3,1.0255]
[1754267979922,1.50364,3516.2,3516.1,0.4199]
[1754267980122,1.79704,3516.2,3516.1,0.4199]
[1754267980325,1.57884,3516.2,3516.1,1.7103]
[1754267980526,1.57884,3516.2,3516.1,2.1587]
[1754267981125,1.0101,3516.2,3516.1,2.1587]
[1754267981530,3.7812,3516.4,3516.3,0.8786]
[1754267981728,19.723,3516.5,3516.4,2.1587]
[1754267982232,3.77645,3516.8,3516.6,0.5896]
[1754267982233,20.4417,3516.7,3516.6,0.5896]
[1754267982425,20.005,3516.7,3516.6,2.1587]
[1754267982931,22.9318,3516.8,3516.7,2.72736]
[1754267983724,23.5207,3516.8,3516.7,2.1587]
[1754267983931,4.2321,3516.8,3516.7,2.1587]
[1754267985529,3.7967,3516.8,3516.7,2.1587]
[1754267985837,3.2078,3516.8,3516.7,2.1587]
[1754267986728,3.8033,3516.8,3516.7,2.1587]
[1754267987038,3.2078,3516.8,3516.7,2.1587]
[1754267987528,19.721,3517.0,3516.8,0.56864]
[1754267987726,19.721,3517.0,3516.9,2.2939]
[1754267988228,3.2078,3517.3,3517.2,0.9199]
[1754267988430,19.721,3517.3,3517.2,2.86248]
[1754267988627,20.3165,3517.3,3517.2,2.86248]
[1754267988831,21.32046,3517.3,3517.2,2.2939]
[1754267989033,20.7519,3517.3,3517.2,2.2939]
[1754267992632,21.0232,3517.3,3517.2,1.8341]
[1754267992837,21.0232,3517.3,3517.2,0.4455]
[1754267993034,0.5955,3517.1,3517.0,0.4455]
[1754267993226,1.0309,3517.1,3517.0,1.8252]
[1754267993538,3.4944,3517.4,3517.3,2.2939]
[1754267993829,0.2866,3517.4,3517.3,2.86246]
[1754267994035,20.0036,3517.4,3517.3,2.86246]
[1754267995033,3.2078,3517.8,3517.7,2.8624]
[1754267995334,22.9228,3517.8,3517.7,2.8624]
[1754267995736,3.2078,3517.8,3517.7,2.8624]
[1754267995936,22.9228,3517.8,3517.7,2.8624]
[1754267996136,23.9537,3517.8,3517.7,2.8624]
[1754267996537,1.0309,3518.2,3518.1,2.86232]
[1754267996734,20.7449,3518.2,3518.1,2.86232]
[1754267996930,4.04744,3518.7,3518.4,0.56838]
[1754267997132,1.0309,3518.5,3518.4,1.48828]
[1754267997332,1.22223802,3518.5,3518.4,0.9199]
[1754267997532,1.49353802,3518.5,3518.4,0.6235]
[1754267997741,1.49353802,3518.5,3518.4,0.4455]
[1754267998135,1.49353802,3518.5,3518.4,2.2939]
[1754267998335,1.22223802,3518.5,3518.4,2.2939]
[1754267999044,1.49353802,3518.5,3518.4,0.4455]
[1754267999440,1.3022,3518.5,3518.4,0.4455]
[1754267999643,0.56838,3518.4,3518.1,1.2469]
[1754267999942,1.0309,3518.2,3518.1,2.2939]
[1754268000139,1.3022,3518.2,3518.1,1.069]
[1754268000335,1.0309,3517.8,3517.7,1.3797]
[1754268000541,20.7399,3517.8,3517.7,1.3797]
[1754268000938,20.7399,3517.8,3517.7,2.2939]
[1754268001843,20.7399,3517.8,3517.7,1.5377]
[1754268002037,21.0112,3517.8,3517.7,1.5377]
[1754268002436,20.7399,3517.8,3517.7,2.2939]
[1754268002637,19.709,3517.8,3517.7,2.2939]
[1754268003340,0.4354,3518.0,3517.8,2.39368]
[1754268003341,0.5955,3517.9,3517.8,2.39368]
[1754268003540,20.3025,3517.9,3517.8,2.86238]
[1754268004135,20.3025,3517.9,3517.8,2.2939]
[1754268004339,21.30636,3517.9,3517.8,1.8341]
[1754268004540,20.7379,3517.9,3517.8,1.8341]
[1754268004741,20.7379,3517.9,3517.8,0.4455]
[1754268004941,21.0092,3517.9,3517.8,0.4455]
[1754268005339,21.57766,3517.9,3517.8,0.4455]
[1754268005548,0.5955,3517.6,3517.5,1.48842]
[1754268005744,1.0309,3517.8,3517.7,1.1833]
[1754268005943,1.0309,3517.8,3517.7,1.4884]
[1754268006148,1.0309,3517.8,3517.7,1.9339]
[1754268006449,1.0309,3517.8,3517.7,2.2939]
[1754268006644,1.3022,3517.8,3517.7,2.2939]
[1754268007744,1.3022,3517.8,3517.7,1.069]
[1754268008049,1.0309,3517.8,3517.7,2.2939]
[1754268009145,1.3022,3517.8,3517.7,1.8341]
[1754268009344,1.3022,3517.8,3517.7,1.3654]
[1754268009743,1.3022,3517.8,3517.7,1.069]
[1754268010750,1.3022,3517.8,3517.7,1.8341]
[1754268011052,1.0309,3517.8,3517.7,2.2939]
[1754268011751,19.707,3517.9,3517.7,0.4455]
[1754268011950,0.2866,3517.8,3517.7,0.9199]
[1754268012352,0.2866,3517.8,3517.7,2.2939]
[1754268012551,0.5955,3517.8,3517.7,2.2939]
[1754268012755,1.0309,3517.8,3517.7,1.8341]
[1754268012956,1.0309,3517.4,3517.3,1.3654]
[1754268013448,1.0309,3517.4,3517.3,2.2939]
[1754268013650,0.2866,3517.4,3517.3,2.2939]
[1754268013853,20.2936,3517.6,3517.5,0.9038]
[1754268014154,20.7391,3517.6,3517.5,2.2331]
[1754268014856,19.699,3517.6,3517.5,2.2331]
[1754268019358,19.696,3517.8,3517.7,0.9038]
[1754268019560,19.696,3517.8,3517.7,2.2331]
[1754268020059,0.29,3517.8,3517.7,2.2331]
[1754268020258,20.4295,3517.8,3517.7,2.2331]
[1754268020759,20.7341,3517.8,3517.7,2.2331]
[1754268023553,20.2886,3517.8,3517.7,2.2331]
[1754268023853,20.7341,3517.8,3517.7,2.2331]
[1754268024053,19.694,3517.8,3517.7,2.2331]
[1754268024254,20.4295,3517.8,3517.7,2.2331]
[1754268024454,20.7341,3517.8,3517.7,2.2331]
[1754268031863,19.694,3517.8,3517.7,2.2331]
[1754268032064,1.60853,3518.1,3518.0,2.2331]
[1754268032263,22.24435224,3518.1,3518.0,2.2331]
[1754268034474,0.75970762,3518.1,3518.0,2.2331]
[1754268034671,44.1408,3518.8,3518.7,1.7899]
[1754268034861,23.84180754,3518.8,3518.7,2.2331]
[1754268035163,24.43640754,3518.8,3518.7,2.2331]
[1754268035368,25.13680754,3518.8,3518.7,2.2331]
[1754268035763,25.13680754,3518.8,3518.7,1.3409]
[1754268035968,25.13680754,3518.8,3518.7,1.0572]
[1754268036370,25.13662004,3518.8,3518.7,1.0572]
[1754268037073,0.5946,3518.3,3518.0,3.6449]
[1754268037278,1.295,3518.1,3518.0,0.4371]
[1754268037478,21.73336944,3518.1,3518.0,0.4371]
[1754268038374,20.974,3518.1,3518.0,0.4371]
[1754268038968,20.974,3518.1,3518.0,1.5062]
[1754268039174,20.974,3518.1,3518.0,1.9494]
[1754268039378,4.81629,3518.4,3518.3,0.9038]
[1754268039674,4.81629,3518.4,3518.3,2.2331]
[1754268039675,24.49329,3518.4,3518.3,2.2331]
[1754268040278,24.49329,3518.4,3517.9,2.2331]
[1754268040279,1.0401,3518.0,3517.9,2.2331]
[1754268041675,0.29,3518.0,3517.9,2.2331]
[1754268042680,1.0401,3518.0,3517.9,2.2331]
[1754268043178,1.295,3518.0,3517.9,0.4371]
[1754268044979,0.2847,3517.8,3517.7,1.1673]
[1754268045197,1.0034,3517.8,3517.7,2.2092]
[1754268046282,1.0034,3517.8,3517.7,1.7727]
[1754268046582,1.0034,3517.8,3517.5,0.4423]
[1754268046583,0.6738,3517.8,3517.5,0.4423]
[1754268046787,1.2423,3517.6,3517.4,1.184]
[1754268046986,0.8074,3517.6,3517.5,0.2844]
[1754268047189,0.5685,3517.2,3517.1,1.3304]
[1754268047381,0.5685,3517.2,3517.0,1.01091]
[1754268047586,0.5685,3517.2,3517.1,1.0278]
[1754268047885,0.5685,3517.2,3517.1,2.2092]
[1754268048087,19.672,3517.3,3517.2,0.56858]
[1754268048293,19.672,3517.3,3517.2,2.77778]
[1754268048788,20.23953,3517.5,3517.4,2.2092]
[1754268048982,0.7196,3517.3,3517.2,2.2092]
[1754268049181,1.0034,3517.3,3517.2,2.2092]
[1754268049591,19.671,3517.5,3517.4,2.2092]
[1754268050189,1.13698,3517.8,3517.7,0.884]
[1754268050387,1.13701,3517.6,3517.5,0.8887]
[1754268050588,1.57196,3517.3,3517.2,0.7267]
[1754268050898,1.57196,3517.3,3516.8,1.7669]
[1754268050899,1.0034,3516.9,3516.8,1.7669]
[1754268051388,1.0034,3516.9,3516.8,2.2092]
[1754268056088,1.0034,3516.9,3516.8,0.4423]
[1754268056398,1.2359,3516.9,3516.8,0.4423]
[1754268056589,1.2359,3516.9,3516.8,1.9107]
[1754268056886,1.0034,3516.9,3516.8,2.2092]
[1754268058692,1.0034,3516.9,3516.7,0.56864]
[1754268058891,3.2078,3517.1,3516.8,0.7434]
[1754268059198,3.2078,3517.1,3516.3,3.2078]
[1754268059199,3.2078,3517.1,3517.0,2.2092]
[1754268059994,3.4916,3517.1,3517.0,2.2092]
[1754268060196,4.2112,3517.1,3517.0,2.2092]
[1754268061400,19.67,3517.3,3517.2,0.2985]
[1754268061692,3.2078,3517.7,3517.6,2.2092]
[1754268061893,22.8728,3517.7,3517.6,2.2092]
[1754268062697,22.8718,3517.7,3517.6,2.2092]
[1754268062993,3.2078,3518.1,3518.0,0.2985]
[1754268063184,22.8718,3518.1,3518.0,2.2092]
[1754268064292,0.5685,3518.4,3518.3,0.85279]
[1754268064498,20.6664,3518.4,3518.3,0.884]
[1754268064692,3.2078,3518.5,3518.3,1.45239]
[1754268064895,19.663,3518.4,3518.3,2.77759]
[1754268066392,0.4349,3518.8,3518.6,0.56835]
[1754268066600,0.4349,3518.9,3518.8,1.7669]
[1754268066792,20.1313442,3518.9,3518.8,1.7669]
[1754268066990,19.66,3518.9,3518.8,1.7669]
[1754268067190,19.66,3518.9,3518.8,2.2092]